bitfinex/quotes_ETHUSD_20241105
["timestamp","ask_amount","ask_price","bid_price","bid_amount"]
[1730817560533,0.7753,2469.3,2468.8,2.83531]
[1730817560874,5.6693,2469.5,2468.7,3.61584]
[1730817560875,0.55,2469.5,2468.7,3.61584]
[1730817561033,2.83492,2469.3,2468.7,3.61584]
[1730817561347,2.83499,2469.2,2468.7,0.7804]
[1730817561531,2.83475,2469.4,2468.7,0.7804]
[1730817561730,2.83475,2469.4,2468.7,3.61583]
[1730817561731,2.83493,2469.2,2468.7,3.61583]
[1730817562136,2.83475,2469.4,2468.7,3.61582]
[1730817562328,0.55,2469.5,2468.7,0.7804]
[1730817562531,5.66972,2469.3,2468.7,0.7804]
[1730817562764,2.83494,2469.2,2468.7,0.7804]
[1730817562971,2.83504,2469.1,2468.5,2.83567]
[1730817563167,2.83504,2469.1,2468.4,3.7925]
[1730817563334,2.83528,2468.9,2468.4,3.7925]
[1730817564055,2.83528,2468.9,2468.0,0.0613906]
[1730817564056,0.8068,2468.8,2468.0,0.8915906]
[1730817564255,2.83583,2468.5,2468.0,0.8915906]
[1730817564437,2.83591,2468.4,2468.0,0.8915906]
[1730817564637,0.567174,2468.4,2468.0,0.0613906]
[1730817564834,2.83596,2468.3,2468.0,0.0613906]
[1730817565040,2.83565,2468.6,2468.0,2.8976206]
[1730817565235,3.64223,2468.8,2468.1,2.83608]
[1730817565571,2.83529,2468.9,2468.3,5.67176]
[1730817565934,2.83545,2468.8,2468.2,0.7757]
[1730817566159,2.83552,2468.7,2468.2,0.7757]
[1730817566363,2.83573,2468.5,2468.0,0.0613906]
[1730817566566,2.83599,2468.3,2468.0,0.0613906]
[1730817567093,2.83607,2468.2,2468.0,0.0613906]
[1730817567234,2.83618,2468.1,2468.0,0.0613906]
[1730817568250,0.7677,2469.1,2468.1,0.7657]
[1730817568450,2.83526,2469.0,2468.5,2.83572]
[1730817568687,0.7677,2469.1,2468.2,2.83607]
[1730817568985,2.83498,2469.2,2468.5,2.83564]
[1730817569186,2.83498,2469.2,2468.6,2.83553]
[1730817569372,2.83504,2469.1,2468.6,2.83553]
[1730817569580,2.83498,2469.2,2468.6,2.83553]
[1730817569581,5.66997,2469.2,2468.6,2.83553]
[1730817569956,2.83498,2469.2,2468.7,0.07380565]
[1730817570694,0.8202,2469.4,2468.7,3.67552565]
[1730817570695,6.48977,2469.4,2468.7,3.67552565]
[1730817570853,2.83487,2469.3,2468.7,3.67552565]
[1730817571186,2.83477,2469.4,2468.8,2.83532]
[1730817571346,2.83487,2469.3,2468.7,4.06455276]
[1730817571546,2.83487,2469.3,2468.9,0.07361232]
[1730817571547,2.83499,2469.2,2468.9,0.07361232]
[1730817571751,2.83487,2469.3,2468.8,0.07370898]
[1730817571954,2.83487,2469.3,2469.0,0.07385937]
[1730817572193,2.83487,2469.3,2468.9,0.07395602]
[1730817572493,2.83487,2469.3,2469.0,0.07385937]
[1730817572701,5.66935,2469.5,2469.0,0.07385937]
[1730817572899,2.83471,2469.4,2468.9,2.83526]
[1730817573082,2.83471,2469.4,2469.1,0.07376272]
[1730817573254,2.83473,2469.4,2469.0,0.07385937]
[1730817573456,2.83466,2469.5,2469.2,0.07366609]
[1730817573678,2.8347,2469.4,2469.1,0.07376272]
[1730817573885,2.8347,2469.4,2468.9,2.83519]
[1730817574196,2.83466,2469.5,2468.9,2.83519]
[1730817574356,0.01,2470.4,2469.2,2.83491]
[1730817574558,2.83377,2470.2,2469.7,2.83427]
[1730817574759,2.83377,2470.2,2469.5,2.83451]
[1730817574954,2.83377,2470.2,2469.8,0.07308643]
[1730817575202,2.83377,2470.2,2469.9,0.07298985]
[1730817575502,0.8153,2470.3,2469.3,0.7655]
[1730817575705,2.83389,2470.1,2470.0,0.07289327]
[1730817575864,3.38403,2470.0,2469.3,3.6003]
[1730817576062,2.83425,2469.8,2469.3,3.6003]
[1730817576364,3.38408,2470.0,2469.4,0.07347284]
[1730817576562,2.83407,2470.0,2469.5,2.83451]
[1730817576790,2.83407,2470.0,2469.4,0.07347284]
[1730817576992,2.83412,2469.9,2469.6,0.07243908]
[1730817577195,2.83412,2469.9,2469.5,0.07253569]
[1730817577380,2.83407,2470.0,2469.7,0.07234248]
[1730817577588,2.83407,2470.0,2469.6,0.07243908]
[1730817577898,2.83407,2470.0,2469.7,0.07234248]
[1730817578103,2.83396,2470.1,2469.7,0.07234248]
[1730817578258,2.83402,2470.0,2469.5,2.83451]
[1730817578459,2.83412,2469.9,2469.8,0.07224589]
[1730817578707,3.400934,2469.9,2469.8,0.07224589]
[1730817578885,2.83326,2470.7,2470.1,2.83387]
[1730817579285,2.83339,2470.6,2470.2,0.07179961]
[1730817579501,2.83326,2470.7,2470.1,2.8338]
[1730817579703,2.83326,2470.7,2470.0,2.83393]
[1730817579704,2.83341,2470.6,2470.3,0.07170306]
[1730817579922,2.83341,2470.6,2470.0,2.83393]
[1730817580065,2.83341,2470.6,2469.8,2.83417]
[1730817580066,2.83298,2470.9,2470.3,2.83364]
[1730817580567,2.83298,2470.9,2470.4,0.07133932]
[1730817581231,2.83298,2470.9,2470.4,2.90484932]
[1730817581379,2.83298,2470.9,2470.4,0.07133932]
[1730817581577,5.66563,2471.1,2470.5,0.824]
[1730817581794,5.948909,2471.1,2470.5,0.824]
[1730817582068,2.83287,2471.0,2470.6,0.07034452]
[1730817582277,3.116069,2471.1,2470.6,0.07034452]
[1730817582278,2.83279,2471.1,2470.6,0.07034452]
[1730817582499,2.83254,2471.3,2470.7,2.8332]
[1730817582682,2.83254,2471.3,2470.7,2.90322451]
[1730817582864,2.83254,2471.3,2470.7,5.73634451]
[1730817583066,2.83263,2471.2,2470.7,2.90314451]
[1730817583264,2.83254,2471.3,2470.7,2.90314451]
[1730817583606,2.83254,2471.3,2470.8,2.83308]
[1730817583905,2.83254,2471.3,2470.9,0.06983149]
[1730817584098,3.399027,2471.3,2470.7,5.66625]
[1730817584304,3.399027,2471.3,2471.0,0.069735]
[1730817584491,2.83263,2471.2,2470.6,2.83329]
[1730817584691,2.83263,2471.2,2471.1,0.06963851]
[1730817584858,2.83263,2471.2,2470.5,3.65739]
[1730817584859,0.566487,2471.3,2470.5,0.824]
[1730817585093,2.83279,2471.1,2470.6,2.8333]
[1730817585340,5.66519,2471.3,2470.5,3.65736]
[1730817585493,2.833,2470.9,2470.5,0.824]
[1730817585701,2.83299,2470.9,2470.5,0.824]
[1730817586044,2.8328,2471.1,2470.5,3.65732]
[1730817586202,2.83258,2471.3,2470.7,2.83311]
[1730817586398,2.83258,2471.3,2470.8,2.83308]
[1730817586614,3.38234,2471.5,2471.0,2.8328]
[1730817586615,2.83234,2471.5,2471.0,2.8328]
[1730817586836,5.83209,2471.7,2471.1,3.66294]
[1730817587043,2.83209,2471.7,2471.1,3.66294]
[1730817587338,2.83196,2471.8,2471.3,2.8325]
[1730817587536,0.646613,2471.8,2471.1,0.8302]
[1730817587738,2.83212,2471.7,2471.1,3.66287]
[1730817588047,0.8023,2472.0,2471.1,0.8302]
[1730817588212,2.83194,2471.8,2471.2,2.83254]
[1730817589041,2.83208,2471.7,2471.1,3.66294]
[1730817589202,5.66421,2471.7,2471.1,0.8302]
[1730817589599,2.8322,2471.6,2471.1,0.8302]
[1730817590146,2.83233,2471.5,2470.9,2.83297]
[1730817590504,2.83212,2471.7,2470.9,2.83297]
[1730817590729,2.83195,2471.8,2471.1,0.7786]
[1730817590951,2.83195,2471.8,2471.2,2.83257]
[1730817591268,2.83219,2471.6,2471.1,0.7786]
[1730817592414,2.83234,2471.5,2471.1,0.7786]
[1730817592612,5.66444,2471.6,2471.1,0.7786]
[1730817592810,5.66445,2471.6,2471.1,0.7786]
[1730817593122,2.83231,2471.5,2471.1,0.7786]
[1730817593331,2.8324,2471.4,2471.1,0.7786]
[1730817593502,2.83223,2471.6,2471.1,0.7786]
[1730817593844,7.831,2472.7,2471.1,0.7786]
[1730817593845,3.0,2472.3,2471.1,0.7786]
[1730817594052,3.61054,2472.6,2471.6,2.8321]
[1730817594249,3.61054,2472.6,2471.4,3.64979]
[1730817594250,2.83166,2472.1,2471.4,3.64979]
[1730817594541,2.83166,2472.1,2471.5,0.08091326]
[1730817594741,5.66285,2472.3,2471.7,2.83197]
[1730817594895,2.83141,2472.3,2471.6,2.83208]
[1730817595096,5.66238,2472.5,2471.8,2.83193]
[1730817595302,2.83115,2472.5,2471.8,2.83193]
[1730817595518,2.83155,2472.2,2471.7,0.8175]
[1730817596104,2.83131,2472.4,2471.7,3.64949]
[1730817596361,2.83149,2472.2,2471.7,3.64948]
[1730817596565,2.83138,2472.3,2471.8,2.83193]
[1730817596748,2.83155,2472.2,2471.7,0.8175]
[1730817596915,5.66312,2472.2,2471.7,0.8175]
[1730817597462,2.83155,2472.2,2471.7,0.8175]
[1730817597677,2.83087,2472.8,2472.1,2.83152]
[1730817597980,2.83115,2472.5,2471.9,6.42834]
[1730817598184,2.83107,2472.6,2472.0,2.83161]
[1730817598459,2.83135,2472.4,2471.8,2.83193]
[1730817598681,2.83109,2472.6,2472.0,0.7766]
[1730817598977,2.83143,2472.3,2472.0,0.7766]
[1730817599122,3.114633,2472.2,2471.7,0.7766]
[1730817599323,2.83184,2471.9,2471.7,0.7766]
[1730817599650,2.8318,2472.0,2471.7,0.7766]
[1730817600170,2.83162,2472.1,2471.8,0.06778658]
[1730817600515,0.55,2472.2,2471.2,2.8326]
[1730817600719,0.55,2472.2,2471.3,0.8212]
[1730817600946,2.83176,2472.0,2471.3,3.65368]
[1730817601270,2.83195,2471.8,2471.3,0.8212]
[1730817601919,2.83176,2472.0,2471.3,0.8212]
[1730817602435,0.338139,2472.1,2471.3,0.8212]
[1730817602621,3.76,2472.4,2471.3,0.8212]
[1730817602622,2.83238,2471.5,2471.3,0.8212]
[1730817602979,2.83189,2471.9,2471.3,0.8212]
[1730817603139,2.83166,2472.1,2471.4,2.83234]
[1730817603460,2.83185,2471.9,2471.6,0.7723]
[1730817603661,2.83166,2472.1,2471.6,0.7723]
[1730817603867,5.66335,2472.1,2471.6,0.7723]
[1730817604178,6.59127,2472.4,2471.6,0.7723]
[1730817604357,2.83178,2472.0,2471.6,0.7723]
[1730817604523,2.83196,2471.8,2471.6,0.7723]
[1730817604729,2.83178,2472.0,2471.6,0.7723]
[1730817605273,2.83151,2472.2,2471.6,0.7723]
[1730817605562,2.8316,2472.1,2471.6,3.60446]
[1730817605725,2.83151,2472.2,2471.6,3.60446]
[1730817605922,2.83172,2472.0,2471.6,0.7723]
[1730817606160,2.83151,2472.2,2471.6,0.7723]
[1730817606377,2.83151,2472.2,2471.7,2.83204]
[1730817606727,2.83142,2472.3,2471.7,2.83199]
[1730817606927,2.83129,2472.4,2471.8,2.83194]
[1730817607237,2.83129,2472.4,2471.7,2.91289524]
[1730817607238,2.83102,2472.6,2471.7,2.83199]
[1730817607427,2.83102,2472.6,2471.6,0.7723]
[1730817607428,2.83169,2472.1,2471.6,0.7723]
[1730817607747,5.66235,2472.5,2471.9,2.83176]
[1730817607953,2.83126,2472.4,2472.0,0.7851]
[1730817608192,2.83114,2472.5,2472.0,0.7851]
[1730817608344,3.7556,2472.9,2472.0,0.7851]
[1730817608540,2.83116,2472.5,2472.0,3.61681]
[1730817608869,3.7556,2472.9,2472.1,2.89867689]
[1730817608870,2.83086,2472.8,2472.1,2.89867689]
[1730817609074,2.83104,2472.6,2472.1,2.89867689]
[1730817609376,0.0613906,2473.0,2472.1,2.89867689]
[1730817609377,0.0613906,2473.0,2472.1,0.06718689]
[1730817609664,2.83068,2472.9,2472.2,2.83145]
[1730817609870,2.83091,2472.7,2472.3,0.06699409]
[1730817610232,2.83074,2472.9,2472.3,0.06699409]
[1730817610233,2.83074,2472.9,2472.4,0.0668977]
[1730817610432,2.83074,2472.9,2472.5,0.7939]
[1730817610665,2.83074,2472.9,2472.6,0.06670495]
[1730817610985,2.83091,2472.7,2472.6,0.06670495]
[1730817611372,2.8920506,2473.0,2472.6,0.06670495]
[1730817611574,0.0613906,2473.0,2472.6,0.06670495]
[1730817611777,2.83088,2472.8,2472.6,0.06670495]
[1730817611954,5.66179,2472.8,2472.6,0.06670495]
[1730817612299,2.83088,2472.8,2472.6,0.06670495]
[1730817612608,2.8308,2472.8,2472.6,0.06670495]
[1730817612799,3.397059,2472.7,2472.6,0.06670495]
[1730817613097,2.8308,2472.8,2472.6,0.06670495]
[1730817613253,2.8308,2472.8,2472.2,3.6339]
[1730817613459,2.8920306,2473.0,2472.6,0.06619875]
[1730817613659,2.83086,2472.8,2472.7,0.06610239]
[1730817613854,2.83086,2472.8,2472.3,0.32154463]
[1730817614084,2.83086,2472.8,2472.4,0.0663915]
[1730817614288,2.83086,2472.8,2472.4,0.38787068]
[1730817614506,2.83086,2472.8,2472.4,0.0663915]
[1730817614710,0.0613906,2473.0,2472.4,0.0663915]
[1730817614997,2.83098,2472.7,2472.2,1.12403189]
[1730817615202,2.83098,2472.7,2472.2,1.44556213]
[1730817615356,0.283098,2472.7,2472.3,0.06648789]
[1730817615557,2.8309,2472.8,2472.3,0.06648789]
[1730817615805,2.83101,2472.7,2472.3,0.06648789]
[1730817616355,2.83101,2472.7,2472.4,0.32153024]
[1730817616607,2.83103,2472.6,2472.4,0.38756254]
[1730817616763,2.83103,2472.6,2472.4,0.0660323]
[1730817617261,2.83093,2472.7,2472.4,0.38756254]
[1730817617462,2.83102,2472.6,2472.4,0.0660323]
[1730817617963,2.83093,2472.7,2472.4,0.38756254]
[1730817618160,2.83092,2472.7,2472.4,0.0660323]
[1730817618364,0.0613906,2473.0,2472.4,0.38756254]
[1730817618365,2.8920306,2473.0,2472.4,0.38756254]
[1730817618591,2.83068,2472.9,2472.4,0.0660323]
[1730817618801,0.0613906,2473.0,2472.5,3.15282225]
[1730817619044,0.0613906,2473.0,2472.6,3.15272461]
[1730817619201,0.0613906,2473.0,2472.7,0.8011]
[1730817619402,2.8920206,2473.0,2472.7,0.86688128]
[1730817619631,0.0613906,2473.0,2472.7,0.86688128]
[1730817619802,2.8920606,2473.0,2472.7,0.86688128]
[1730817620004,2.83079,2472.8,2472.7,0.06578128]
[1730817620353,0.0613906,2473.0,2472.6,0.32168639]
[1730817620521,2.83071,2472.9,2472.6,0.64356109]
[1730817620703,3.58698,2472.9,2472.7,0.06576495]
[1730817620900,2.83079,2472.8,2472.7,0.06576495]
[1730817622105,3.47870606,2472.8,2472.7,0.06576495]
[1730817622612,2.83068,2472.9,2472.7,0.06576495]
[1730817622813,2.83086,2472.8,2472.6,0.32168639]
[1730817623148,2.83068,2472.9,2472.7,0.06576495]
[1730817623313,2.83079,2472.8,2472.7,0.06576495]
[1730817623515,2.83098,2472.7,2472.4,0.32228364]
[1730817623720,2.83098,2472.7,2472.5,0.38824133]
[1730817623922,2.83102,2472.6,2472.5,0.06595769]
[1730817624134,2.83102,2472.6,2472.5,0.32227518]
[1730817624456,2.83076,2472.9,2472.5,0.38823287]
[1730817624605,2.83075,2472.9,2472.6,0.32223105]
[1730817624806,0.0613906,2473.0,2472.6,0.06586132]
[1730817625031,0.0613906,2473.0,2472.8,0.7533]
[1730817625432,2.8919606,2473.0,2472.9,0.06557225]
[1730817626014,2.8919606,2473.0,2472.5,0.7904]
[1730817626243,2.83075,2472.9,2472.5,0.7904]
[1730817626616,2.83082,2472.8,2472.5,0.7904]
[1730817626812,2.83075,2472.9,2472.5,0.7904]
[1730817627018,2.83081,2472.8,2472.5,0.7904]
[1730817627529,5.66149,2472.9,2472.5,0.7904]
[1730817627743,2.83082,2472.8,2472.5,0.7904]
[1730817627943,2.83074,2472.9,2472.5,0.7904]
[1730817628155,2.83092,2472.7,2472.5,0.7904]
[1730817628462,3.11995306,2472.9,2472.5,0.7904]
[1730817628611,2.83082,2472.8,2472.5,0.7904]
[1730817628814,2.83082,2472.8,2472.5,1.11268287]
[1730817629112,3.11995306,2472.9,2472.5,0.7904]
[1730817629456,3.11995306,2472.9,2472.5,1.11269693]
[1730817629664,2.83121,2472.5,2472.2,0.8301]
[1730817629828,0.31813437,2472.8,2472.3,2.83135]
[1730817630016,2.83084,2472.8,2472.3,2.89739707]
[1730817630215,2.83077,2472.9,2472.4,0.32233706]
[1730817630558,0.0613906,2473.0,2472.4,0.32233706]
[1730817630559,2.83097,2472.7,2472.4,0.38828774]
[1730817630764,2.83097,2472.7,2472.4,0.06595068]
[1730817630915,2.83114,2472.5,2472.4,0.06595068]
[1730817631111,2.83108,2472.6,2472.0,2.83164]
[1730817631312,2.83092,2472.7,2472.2,3.58488]
[1730817631522,2.83088,2472.8,2472.3,3.21976649]
[1730817631771,2.8920206,2473.0,2472.3,2.89740707]
[1730817631945,2.83086,2472.8,2472.4,0.32239991]
[1730817632260,2.83077,2472.9,2472.5,0.0658543]
[1730817632461,2.83096,2472.7,2472.5,0.10755463]
[1730817632757,2.83096,2472.7,2472.3,0.6450945]
[1730817632957,2.83096,2472.7,2472.6,0.10745658]
[1730817633132,2.83096,2472.7,2472.3,0.6450945]
[1730817633456,2.83096,2472.7,2472.4,0.1076527]
[1730817633620,2.8308,2472.8,2472.4,0.1076527]
[1730817633820,2.83076,2472.9,2472.4,0.1076527]
[1730817634255,2.83076,2472.9,2472.4,0.43034283]
[1730817634462,0.0613906,2473.0,2472.7,2.83084]
[1730817634631,0.0613906,2473.0,2472.8,1.08569013]
[1730817634830,1.25874275,2473.4,2472.8,1.08569013]
[1730817634831,0.86977564,2473.4,2473.3,0.01]
[1730817635138,2.1139513,2473.7,2473.6,6.65498]
[1730817635335,2.1139513,2473.7,2473.6,7.08074627]
[1730817635665,2.1139513,2473.7,2473.6,4.08074627]
[1730817635825,2.1139513,2473.7,2473.6,1.25086627]
[1730817636026,2.1139513,2473.7,2473.6,0.10307614]
[1730817636466,2.1139513,2473.7,2473.3,0.8251]
[1730817636653,2.1139513,2473.7,2473.6,0.10307614]
[1730817637923,2.1139513,2473.7,2473.4,2.91088111]
[1730817638122,2.1139513,2473.7,2473.5,0.10317412]
[1730817638559,2.8906406,2474.2,2473.5,0.10317412]
[1730817638560,0.0613906,2474.2,2473.6,3.70663112]
[1730817638859,0.0613906,2474.2,2473.7,2.82972]
[1730817639073,0.0613906,2474.2,2473.7,0.10297817]
[1730817639226,2.8906806,2474.2,2473.7,0.10297817]
[1730817639625,2.82931,2474.1,2473.7,0.10297817]
[1730817640042,2.82942,2474.0,2473.7,0.10297817]
[1730817640263,0.0613906,2474.2,2473.8,0.7798]
[1730817640474,2.8905906,2474.2,2473.8,0.7798]
[1730817640630,2.8905906,2474.2,2473.9,0.10199924]
[1730817640830,2.82937,2474.1,2473.9,0.10199924]
[1730817641165,0.0613906,2474.2,2473.9,0.10199924]
[1730817641543,0.0613906,2474.2,2473.6,3.59411]
[1730817641727,0.0613906,2474.2,2473.8,0.772]
[1730817641932,0.0613906,2474.2,2474.1,3.60131]
[1730817642140,0.0613906,2474.2,2474.1,3.7031351]
[1730817643328,0.0613906,2474.2,2474.1,0.8738251]
[1730817643933,0.0613906,2474.2,2474.1,0.1018251]
[1730817644270,2.8905806,2474.2,2473.7,0.7894]
[1730817644472,0.0613906,2474.2,2474.1,0.10045511]
[1730817644928,0.0613906,2474.2,2473.9,2.91029564]
[1730817645133,0.0613906,2474.2,2474.0,0.10055305]
[1730817645534,0.0613906,2474.2,2474.1,0.7549]
[1730817645754,0.0613906,2474.2,2474.1,3.68466511]
[1730817646030,0.0613906,2474.2,2474.1,0.85535511]
[1730817646358,0.0613906,2474.2,2474.1,0.10045511]
[1730817646534,0.0613906,2474.2,2473.8,3.58446]
[1730817646733,0.0613906,2474.2,2473.9,2.930121]
[1730817647133,0.0613906,2474.2,2473.9,0.18148668]
[1730817647439,0.0613906,2474.2,2473.9,0.100651]
[1730817647774,0.0613906,2474.2,2473.9,2.930181]
[1730817647941,0.0613906,2474.2,2473.9,0.100651]
[1730817648139,0.0613906,2474.2,2473.9,3.01099668]
[1730817648345,0.0613906,2474.2,2473.9,0.100651]
[1730817648653,0.0613906,2474.2,2473.9,2.930171]
[1730817648855,0.0613906,2474.2,2473.9,0.100651]
[1730817649729,2.82931,2474.1,2473.9,0.100651]
[1730817649930,2.82932,2474.1,2473.5,0.7577]
[1730817650230,2.82932,2474.1,2473.2,3.0]
[1730817650231,2.82976,2473.7,2473.6,0.10094489]
[1730817650427,2.82966,2473.8,2473.6,0.10094489]
[1730817650631,2.82972,2473.8,2473.2,3.58803]
[1730817650825,0.282972,2473.8,2473.2,0.7577]
[1730817651072,2.82974,2473.8,2473.3,0.10123885]
[1730817651236,2.83011,2473.4,2473.3,0.10123885]
[1730817651437,2.8306,2473.0,2472.4,3.58694]
[1730817651644,0.7555,2473.1,2472.5,2.83106]
[1730817651844,2.8308,2472.8,2472.4,0.7557]
[1730817652081,2.83097,2472.7,2472.4,0.7557]
[1730817652284,2.83145,2472.3,2471.6,2.83212]
[1730817652432,2.83115,2472.5,2471.6,2.83209]
[1730817652632,2.83137,2472.3,2471.6,2.83209]
[1730817652943,2.83115,2472.5,2471.5,0.7557]
[1730817652944,2.83115,2472.5,2471.8,2.83184]
[1730817653181,0.7555,2472.6,2471.8,2.83184]
[1730817653346,3.58653,2472.6,2471.9,2.91268576]
[1730817653683,0.7555,2472.6,2471.9,2.83178]
[1730817653831,0.7555,2472.6,2471.9,2.83176]
[1730817654174,2.83117,2472.5,2471.9,2.83176]
[1730817654668,0.7555,2472.6,2472.0,2.83171]
[1730817654881,2.83095,2472.7,2472.1,0.8222]
[1730817655034,2.831,2472.7,2472.1,3.65377]
[1730817655375,0.7704,2472.9,2472.1,3.65377]
[1730817655376,3.60114,2472.9,2472.3,2.8313]
[1730817655933,3.60114,2472.9,2472.1,3.65371]
[1730817656138,4.06637371,2472.9,2472.1,3.65371]
[1730817656578,4.06637371,2472.9,2472.4,2.83125]
[1730817656579,2.83074,2472.9,2472.4,2.83125]
[1730817657110,3.61831949,2472.9,2471.8,0.7623]
[1730817657319,2.83091,2472.7,2472.0,2.83169]
[1730817657598,2.83113,2472.6,2472.1,0.09629035]
[1730817657769,2.83111,2472.6,2472.1,0.09629035]
[1730817657955,2.83111,2472.6,2472.1,2.83159]
[1730817658157,2.8311,2472.6,2472.2,0.09619226]
[1730817658359,2.8311,2472.6,2471.9,2.83173]
[1730817658574,2.8311,2472.6,2472.0,0.09638845]
[1730817658575,3.65395,2472.5,2472.0,0.09638845]
[1730817659200,0.8228,2472.5,2472.0,0.17729053]
[1730817659422,3.65362,2472.8,2472.1,2.83153]
[1730817659704,2.83064,2473.0,2472.4,2.83121]
[1730817659885,2.83064,2473.0,2472.3,3.66397]
[1730817660063,5.66196,2472.7,2472.5,0.09589804]
[1730817660259,2.83097,2472.7,2472.4,0.09599611]
[1730817660457,2.83075,2472.9,2472.6,0.09579998]
[1730817660655,2.83075,2472.9,2472.5,0.09589804]
[1730817660982,6.48388,2473.1,2472.6,0.09579998]
[1730817661158,2.83076,2472.9,2472.6,0.09579998]
[1730817661365,2.83079,2472.8,2472.3,2.8313]
[1730817661598,1.471188,2473.1,2472.4,0.09599611]
[1730817661969,4.1045955,2473.5,2472.1,0.0809019]
[1730817661970,3.58128,2473.4,2472.9,2.83067]
[1730817662197,2.83028,2473.3,2472.7,5.66164]
[1730817662357,0.7511,2473.4,2473.0,2.92596783]
[1730817662904,0.7511,2473.4,2473.0,0.09540783]
[1730817663202,4.516024,2473.6,2473.0,0.09540783]
[1730817663502,3.3566624,2473.6,2473.0,0.09540783]
[1730817663704,2.83023,2473.3,2472.8,2.83073]
[1730817663897,2.83023,2473.3,2473.1,0.09611242]
[1730817664120,2.83018,2473.4,2472.8,2.83073]
[1730817664286,2.83018,2473.4,2473.2,0.09592762]
[1730817664489,2.83063,2473.0,2472.4,5.66239]
[1730817664714,2.83063,2473.0,2472.5,2.83113]
[1730817665023,2.83063,2473.0,2472.4,2.83119]
[1730817665241,2.83063,2473.0,2472.4,5.66237]
[1730817665409,2.83077,2472.9,2472.4,2.83118]
[1730817665721,2.83041,2473.2,2472.5,2.83104]
[1730817665927,2.83042,2473.2,2472.3,0.823]
[1730817666125,2.83042,2473.2,2472.4,2.83117]
[1730817666314,2.83001,2473.5,2472.9,3.58318]
[1730817666622,3.63566,2473.6,2472.9,3.58327]
[1730817666804,2.83012,2473.4,2472.9,3.58327]
[1730817667009,2.83011,2473.4,2472.9,3.58327]
[1730817667182,2.83011,2473.4,2472.9,3.58328]
[1730817667381,3.63566,2473.6,2472.9,3.58328]
[1730817667382,2.83002,2473.5,2472.9,3.58328]
[1730817667612,2.83011,2473.4,2472.9,0.7526]
[1730817667783,2.83019,2473.4,2472.6,3.61551]
[1730817667983,3.193622,2473.5,2472.6,0.7845]
[1730817668187,0.8057,2473.6,2473.1,2.83034]
[1730817668384,2.8296,2473.9,2473.3,2.83015]
[1730817668617,2.8296,2473.9,2473.2,0.86536504]
[1730817668618,2.82977,2473.7,2473.2,0.7845]
[1730817668923,0.7851,2473.6,2472.9,0.8178]
[1730817669132,2.82956,2473.9,2473.3,2.83016]
[1730817669133,2.82971,2473.8,2473.3,2.83016]
[1730817669420,0.644437,2473.8,2472.9,3.6484]
[1730817669609,2.83023,2473.3,2472.9,0.8178]
[1730817669821,2.8303,2473.3,2472.6,2.83095]
[1730817670014,0.55,2473.5,2472.4,0.8249]
[1730817670183,0.7779,2473.0,2472.1,3.65721]
[1730817670385,2.83085,2472.8,2472.1,0.8257]
[1730817670698,2.8308,2472.8,2472.3,2.8313]
[1730817671023,2.8308,2472.8,2472.2,2.83147]
[1730817671024,2.83095,2472.7,2472.2,2.83147]
[1730817671220,0.7779,2473.0,2472.1,3.65721]
[1730817671424,0.7779,2473.0,2472.1,0.8257]
[1730817671626,0.7779,2473.0,2471.5,3.585]
[1730817671627,2.83169,2472.1,2471.5,3.585]
[1730817671835,2.83183,2471.9,2471.3,3.58522]
[1730817671982,2.83169,2472.1,2471.3,3.58522]
[1730817671983,2.83169,2472.1,2471.6,2.92344939]
[1730817672184,2.83169,2472.1,2471.5,2.83218]
[1730817672381,2.83169,2472.1,2471.7,0.09121127]
[1730817672382,2.83172,2472.0,2471.7,0.09121127]
[1730817672595,2.83199,2471.8,2471.6,0.09130939]
[1730817672893,2.83225,2471.6,2471.0,0.7801]
[1730817673115,2.83225,2471.6,2471.0,3.61289]
[1730817673441,4.173569,2471.8,2471.1,2.83272]
[1730817673442,4.173609,2471.8,2471.1,2.83272]
[1730817673787,2.83218,2471.6,2471.0,0.7801]
[1730817674128,2.83218,2471.6,2470.9,2.83288]
[1730817674326,2.83207,2471.7,2471.1,2.83266]
[1730817674535,2.83219,2471.6,2470.7,0.8035]
[1730817674700,2.83219,2471.6,2470.9,2.83296]
[1730817675021,0.55,2471.3,2471.0,0.09272678]
[1730817675452,2.83265,2471.2,2470.5,2.83336]
[1730817675609,2.83265,2471.2,2470.6,0.08095173]
[1730817675945,2.83265,2471.2,2470.6,0.09315208]
[1730817676654,2.83287,2471.0,2470.6,0.09315208]
[1730817676954,2.83315,2470.8,2470.1,2.83383]
[1730817677122,2.83315,2470.8,2470.2,0.09354499]
[1730817677624,0.7591,2470.9,2470.2,0.09354499]
[1730817677625,2.83332,2470.6,2470.2,0.09354499]
[1730817678011,2.83332,2470.6,2470.0,2.83398]
[1730817678216,2.83332,2470.6,2470.3,0.09344675]
[1730817678416,2.83315,2470.8,2470.1,2.83389]
[1730817678619,2.83315,2470.8,2470.4,0.09334852]
[1730817678821,3.192375,2470.8,2470.1,2.83389]
[1730817679003,2.83328,2470.7,2470.5,0.09325029]
[1730817679210,3.192375,2470.8,2470.2,2.83376]
[1730817679525,2.8331,2470.8,2470.3,0.7992]
[1730817679848,2.83309,2470.8,2470.4,0.09334852]
[1730817680200,2.8332,2470.7,2470.4,0.09334852]
[1730817680402,2.83309,2470.8,2470.4,0.09334852]
[1730817680649,2.83322,2470.7,2470.1,2.83379]
[1730817680805,2.83309,2470.8,2470.5,0.09325029]
[1730817681004,2.83331,2470.7,2470.1,2.83383]
[1730817681212,3.192309,2470.8,2470.6,0.09315208]
[1730817681543,2.83344,2470.5,2470.0,0.7992]
[1730817681854,2.83389,2470.1,2469.6,2.83437]
[1730817682055,2.83389,2470.1,2469.3,0.0613906]
[1730817682056,2.83418,2469.9,2469.3,2.8961806]
[1730817682236,2.83433,2469.8,2469.3,0.0613906]
[1730817682436,2.8343,2469.8,2469.3,0.0613906]